[Event "Oslo Chess Festival 2017"]
[Site "Oslo"]
[Date "2017.09.30"]
[Round "3"]
[White "Vogt, Lothar"]
[Black "Lindblom, Roar"]
[Result "1-0"]
[ECO "A08"]
[WhiteElo "2401"]
[BlackElo "1940"]
[Annotator "ChessBase"]
[PlyCount "133"]
[EventDate "2017.??.??"]
[EventType "swiss"]
[EventCountry "NOR"]
[SourceTitle "playchess.com"]
[Source "ChessBase"]
[SourceQuality "1"]
[TimeControl "5400+30"]

1. Nf3 {[%emt 0:00:02]} d5 {[%emt 0:00:59]} 2. g3 {[%emt 0:00:04]} c5 {[%emt 0:01:18]} 3. Bg2 {[%emt 0:00:05]} Nc6 {[%emt 0:00:52]} 4. O-O {[%emt 0:00:07]} e5 {[%emt 0:01:17]} 5. d3 {[%emt 0:00:26]} Nf6 {[%emt 0:05:51]} 6. e4 {[%emt 0:00:55]} d4 {[%emt 0:02:03]} 7. a4 {[%emt 0:01:56]} Be7 {[%emt 0:08:55]} 8. Na3 {[%emt 0:01:01]} Bg4 {[%emt 0:00:50]} 9. h3 {[%emt 0:02:30]} Bxf3 {[%emt 0:00:23]} 10. Qxf3 {[%emt 0:00:29]} a6 {[%emt 0:01:26]} 11. Nc4 {[%emt 0:03:45]} b5 {[%emt 0:06:40]} 12. axb5 {[%emt 0:00:25]} axb5 {[%emt 0:00:06]} 13. Rxa8 {[%emt 0:00:11]} Qxa8 {[%emt 0:00:08]} 14. Nb6 {[%emt 0:00:19]} Qb7 {[%emt 0:02:36]} 15. Nd5 {[%emt 0:00:03]} Nd8 {[%emt 0:07:46]} 16. Nxe7 {[%emt 0:07:48]} Qxe7 {[%emt 0:00:18]} 17. Qe2 {[%emt 0:03:14]} Nd7 {[%emt 0:05:41]} 18. f4 {[%emt 0:04:34]} O-O {[%emt 0:00:30]} 19. f5 {[%emt 0:00:43]} f6 {[%emt 0:00:54]} 20. g4 {[%emt 0:09:10]} Nf7 {[%emt 0:00:39]} 21. h4 {[%emt 0:02:58]} h6 {[%emt 0:03:59]} 22. Rf3 {[%emt 0:01:12]} Ra8 {[%emt 0:00:17]} 23. Kh2 {[%emt 0:03:09]} Ra6 {[%emt 0:06:50]} 24. Rf1 {[%emt 0:08:35]} Ra1 {[%emt 0:06:36]} 25. Bd2 {[%emt 0:07:02]} Ra2 {[%emt 0:01:49]} 26. Rb1 {[%emt 0:01:07]} Nb6 {[%emt 0:00:24]} 27. Qd1 {[%emt 0:01:58]} c4 {[%emt 0:01:04]} 28. Bf1 {[%emt 0:01:00]} Qc5 {[%emt 0:01:40]} 29. Qc1 {[%emt 0:07:32]} Qe7 {[%emt 0:03:47]} 30. Ra1 {[%emt 0:04:10]} Rxa1 {[%emt 0:03:11]} 31. Qxa1 {[%emt 0:00:05]} Qb7 {[%emt 0:03:08]} 32. Qa3 {[%emt 0:08:52]} Qc6 {[%emt 0:02:48]} 33. Bb4 {[%emt 0:03:39]} cxd3 {[%emt 0:04:35]} 34. Bxd3 {[%emt 0:05:26]} Nc4 {[%emt 0:00:15]} 35. Qb3 {[%emt 0:00:34]} Kh7 {[%emt 0:01:56]} 36. Kg3 {[%emt 0:00:31]} Nfd6 {[%emt 0:01:24]} 37. Bxd6 {[%emt 0:00:44]} Nxd6 {[%emt 0:00:34]} 38. Kf3 {[%emt 0:01:27]} Nc4 {[%emt 0:01:55]} 39. Ke2 {[%emt 0:01:29]} Nd6 {[%emt 0:00:34]} 40. Qe6 {[%emt 0:00:27]} Qc5 {[%emt 0:00:56]} 41. g5 {[%emt 0:00:11]} hxg5 {[%emt 0:01:47]} 42. hxg5 {[%emt 0:00:02]} fxg5 {[%emt 0:00:38]} 43. b3 {[%emt 0:00:53]} g4 {[%emt 0:02:21]} 44. Qg6+ {[%emt 0:00:44]} Kh8 {[%emt 0:00:12]} 45. Qxg4 {[%emt 0:00:16]} Qc7 {[%emt 0:01:31]} 46. Qg5 {[%emt 0:01:07]} Nf7 {[%emt 0:01:37]} 47. Qg6 {[%emt 0:01:20]} Nd6 {[%emt 0:03:44]} 48. Qe6 {[%emt 0:00:30]} Qc5 {[%emt 0:00:25]} 49. Kf3 {[%emt 0:00:26]} Kh7 {[%emt 0:03:15]} 50. Kg4 {[%emt 0:00:51]} Qb4 {[%emt 0:00:42]} 51. Qxe5 {[%emt 0:00:41]} Nf7 {[%emt 0:00:11]} 52. Qh2+ {[%emt 0:00:59]} Nh6+ {[%emt 0:00:26]} 53. Kf3 {[%emt 0:02:09]} Qe1 {[%emt 0:00:13]} 54. Qf2 {[%emt 0:00:49]} Qd1+ {[%emt 0:00:35]} 55. Kf4 {[%emt 0:00:47]} Qg4+ {[%emt 0:00:38]} 56. Ke5 {[%emt 0:00:06]} Qg5 {[%emt 0:01:16]} 57. Kxd4 {[%emt 0:01:39]} Ng4 {[%emt 0:00:15]} 58. Qg3 {[%emt 0:00:52]} Qf6+ {[%emt 0:01:16]} 59. Kc5 {[%emt 0:02:12]} Ne5 {[%emt 0:00:26]} 60. Kb4 {[%emt 0:02:16]} Qd6+ {[%emt 0:00:19]} 61. Kxb5 {[%emt 0:01:09]} Qb8+ {[%emt 0:00:35]} 62. Ka4 {[%emt 0:00:19]} Qa7+ {[%emt 0:00:25]} 63. Kb4 {[%emt 0:00:19]} Qb6+ {[%emt 0:01:19]} 64. Ka3 {[%emt 0:00:27]} Qd4 {[%emt 0:00:25]} 65. Ka2 {[%emt 0:00:16]} Kg8 {[%emt 0:00:38]} 66. Kb1 {[%emt 0:00:06]} Qc5 {[%emt 0:01:07]} 67. f6 {[%emt 0:00:18]} 1-0

[Event "Oslo Chess Festival 2017"]
[Site "Oslo"]
[Date "2017.09.30"]
[Round "3"]
[White "Mikalsen, Erlend"]
[Black "Lillevold, Frode"]
[Result "1-0"]
[ECO "C67"]
[WhiteElo "2322"]
[BlackElo "2128"]
[Annotator "NA"]
[PlyCount "94"]
[EventDate "2017.??.??"]
[EventType "swiss"]
[EventCountry "NOR"]
[SourceTitle "playchess.com"]
[Source "ChessBase"]
[SourceQuality "1"]
[TimeControl "5400+30"]

1. e4 {[%emt 0:06:04]} e5 {[%emt 0:01:04]} 2. Nf3 {[%emt 0:00:22]} Nc6 {[%emt 0:00:19]} 3. Bb5 {[%emt 0:00:03]} Nf6 {[%emt 0:01:00]} 4. O-O {[%emt 0:00:20]} Nxe4 {[%emt 0:00:06]} 5. d4 {[%emt 0:00:04]} Nd6 {[%emt 0:00:13]} 6. Bxc6 {[%emt 0:00:04]} dxc6 {[%emt 0:00:12]} 7. dxe5 {[%emt 0:00:02]} Nf5 {[%emt 0:00:16]} 8. Qxd8+ {[%emt 0:00:04]} Kxd8 {[%emt 0:00:10]} 9. Nc3 {[%emt 0:00:04]} Ne7 {[%emt 0:00:47]} 10. Rd1+ {[%emt 0:00:20]} Ke8 {[%emt 0:00:38]} 11. h3 {[%emt 0:04:39]} Ng6 {[%emt 0:03:05]} 12. Ne4 {[%emt 0:04:38]} Bf5 {[%emt 0:07:15]} 13. Re1 {[%emt 0:00:13]} Rd8 {[%emt 0:01:56]} 14. g4 {[%emt 0:24:07]} Bxe4 {[%emt 0:09:12]} 15. Rxe4 {[%emt 0:00:05]} Rd1+ {[%emt 0:00:10]} 16. Kg2 {[%emt 0:00:20]} Be7 {[%emt 0:02:35]} 17. b3 {[%emt 0:02:57]} Nh4+ {[%emt 0:14:26]} 18. Nxh4 {[%emt 0:00:19]} Bxh4 {[%emt 0:00:00]} 19. Re2 {[%emt 0:03:51]} Bg5 {[%emt 0:14:47]} 20. Bb2 {[%emt 0:00:05]} Rxa1 {[%emt 0:00:14]} 21. Bxa1 {[%emt 0:00:02]} h5 {[%emt 0:03:12]} 22. Re4 {[%emt 0:04:34]} hxg4 {[%emt 0:01:13]} 23. hxg4 {[%emt 0:06:01]} Bc1 {[%emt 0:08:46]} 24. e6 {[%emt 0:02:40]} Rh7 {[%emt 0:09:08]} 25. exf7+ {[%emt 0:02:32]} Kxf7 {[%emt 0:02:07]} 26. Be5 {[%emt 0:00:50]} Rh6 {[%emt 0:11:24]} 27. Bxc7 {[%emt 0:00:26]} c5 {[%emt 0:03:45]} 28. f4 {[%emt 0:04:38]} b5 {[%emt 0:02:23]} 29. f5 {[%emt 0:00:38]} b4 {[%emt 0:01:03]} 30. Bf4 {[%emt 0:04:53]} Bxf4 {[%emt 0:00:13]} 31. Rxf4 {[%emt 0:00:02]} Ra6 {[%emt 0:01:48]} 32. Rc4 {[%emt 0:00:08]} Rxa2 {[%emt 0:00:59]} 33. Rxc5 {[%emt 0:00:05]} a5 {[%emt 0:00:07]} 34. Rc7+ {[%emt 0:13:59]} Kf8 {[%emt 0:00:13]} 35. Kg3 {[%emt 0:02:34]} a4 {[%emt 0:00:20]} 36. bxa4 Rxa4 {[%emt 0:00:01]} 37. Kh4 {[%emt 0:00:46]} Ra3 {[%emt 0:01:45]} 38. Rc8+ {[%emt 0:02:10]} Kf7 {[%emt 0:00:24]} 39. g5 {[%emt 0:00:13]} b3 {[%emt 0:01:40]} 40. cxb3 {[%emt 0:00:37]} Rxb3 {[%emt 0:00:06]} 41. g6+ {[%emt 0:00:12]} Ke7 {[%emt 0:00:51]} 42. Rg8 {[%emt 0:01:00]} Kf6 {[%emt 0:00:50]} 43. Rf8+ {[%emt 0:00:04]} Ke5 {[%emt 0:00:35]} 44. f6 {[%emt 0:00:53]} Rb4+ {[%emt 0:00:43]} 45. Kh5 {[%emt 0:01:55]} Rb7 {[%emt 0:00:28]} 46. fxg7 {[%emt 0:01:30]} Rxg7 {[%emt 0:00:02]} 47. Kh6 {[%emt 0:00:25]} Kd5 {[%emt 0:00:44]} 1-0

[Event "Oslo Chess Festival 2017"]
[Site "Oslo"]
[Date "2017.09.30"]
[Round "3"]
[White "Vestby-Ellingsen, Mads"]
[Black "Nilsen, Tobias Lang"]
[Result "1/2-1/2"]
[ECO "E52"]
[WhiteElo "2262"]
[BlackElo "1899"]
[Annotator "NA"]
[PlyCount "119"]
[EventDate "2017.??.??"]
[EventType "swiss"]
[EventCountry "NOR"]
[SourceTitle "playchess.com"]
[Source "ChessBase"]
[SourceQuality "1"]
[TimeControl "5400+30"]

1. Nf3 {[%emt 0:00:01]} d5 {[%emt 0:00:30]} 2. d4 {[%emt 0:01:14]} Nf6 {[%emt 0:00:28]} 3. c4 {[%emt 0:00:16]} e6 {[%emt 0:00:38]} 4. Nc3 {[%emt 0:01:21]} Bb4 {[%emt 0:01:48]} 5. e3 {[%emt 0:08:37]} O-O {[%emt 0:05:34]} 6. Bd3 {[%emt 0:00:28]} b6 {[%emt 0:02:57]} 7. O-O {[%emt 0:01:14]} Bb7 {[%emt 0:02:17]} 8. a3 {[%emt 0:03:48]} Bxc3 {[%emt 0:01:56]} 9. bxc3 {[%emt 0:00:10]} Nbd7 {[%emt 0:02:40]} 10. cxd5 {[%emt 0:05:21]} exd5 {[%emt 0:00:40]} 11. c4 {[%emt 0:00:42]} dxc4 {[%emt 0:03:07]} 12. Bxc4 {[%emt 0:00:19]} c5 {[%emt 0:02:28]} 13. Bb2 {[%emt 0:00:32]} Rc8 {[%emt 0:01:52]} 14. d5 {[%emt 0:18:05]} a6 {[%emt 0:03:38]} 15. a4 {[%emt 0:01:32]} b5 {[%emt 0:06:37]} 16. axb5 {[%emt 0:00:17]} axb5 {[%emt 0:00:07]} 17. Bxb5 {[%emt 0:02:25]} Bxd5 {[%emt 0:02:48]} 18. Ne5 {[%emt 0:16:50]} Nxe5 {[%emt 0:05:17]} 19. Bxe5 {[%emt 0:00:10]} Bc6 {[%emt 0:01:41]} 20. Ba6 {[%emt 0:03:52]} Ra8 {[%emt 0:10:04]} 21. Bd6 {[%emt 0:02:04]} Re8 {[%emt 0:04:41]} 22. Bxc5 {[%emt 0:00:44]} Nd7 {[%emt 0:01:04]} 23. Bd4 {[%emt 0:08:11]} Qg5 {[%emt 0:02:47]} 24. f3 {[%emt 0:00:14]} Ne5 {[%emt 0:04:29]} 25. Qe2 {[%emt 0:06:44]} Ng6 {[%emt 0:03:35]} 26. Kh1 {[%emt 0:00:30]} Nh4 {[%emt 0:02:46]} 27. Qf2 {[%emt 0:04:36]} Nf5 {[%emt 0:05:52]} 28. e4 {[%emt 0:03:08]} Nxd4 {[%emt 0:00:41]} 29. Qxd4 {[%emt 0:00:08]} Rad8 {[%emt 0:01:06]} 30. Qc3 {[%emt 0:00:49]} Rd2 {[%emt 0:04:50]} 31. Rg1 {[%emt 0:00:07]} Rd6 {[%emt 0:00:28]} 32. Ra5 {[%emt 0:04:20]} Qh4 {[%emt 0:02:42]} 33. Qe1 {[%emt 0:01:08]} Qf4 {[%emt 0:01:26]} 34. Qc1 {[%emt 0:02:14]} Qh4 {[%emt 0:01:52]} 35. g3 {[%emt 0:05:42]} Qf6 {[%emt 0:00:49]} 36. Qf4 {[%emt 0:00:56]} Qxf4 {[%emt 0:01:53]} 37. gxf4 {[%emt 0:00:01]} Rxe4 {[%emt 0:04:52]} 38. Bb5 {[%emt 0:00:06]} Re8 {[%emt 0:01:05]} 39. Bxc6 {[%emt 0:00:08]} Rxc6 {[%emt 0:00:08]} 40. Rag5 {[%emt 0:01:25]} g6 {[%emt 0:01:08]} 41. f5 {[%emt 0:00:44]} Kg7 {[%emt 0:01:04]} 42. fxg6 {[%emt 0:00:12]} hxg6 {[%emt 0:01:12]} 43. R5g2 {[%emt 0:00:27]} Rf6 {[%emt 0:00:36]} 44. Rf2 {[%emt 0:00:11]} Re3 {[%emt 0:00:19]} 45. Rg3 {[%emt 0:00:55]} Rfe6 {[%emt 0:00:45]} 46. f4 {[%emt 0:00:40]} Re1+ {[%emt 0:00:45]} 47. Kg2 {[%emt 0:00:07]} R1e2 {[%emt 0:00:18]} 48. Kg1 {[%emt 0:00:35]} Re1+ {[%emt 0:00:35]} 49. Kg2 {[%emt 0:00:13]} R1e2 {[%emt 0:00:13]} 50. Rgf3 {[%emt 0:00:14]} Rxf2+ {[%emt 0:00:15]} 51. Kxf2 {[%emt 0:00:15]} Rf6 {[%emt 0:00:31]} 52. Kg3 {[%emt 0:00:09]} Rf5 {[%emt 0:00:18]} 53. Kg4 {[%emt 0:00:17]} Rh5 {[%emt 0:01:32]} 54. h4 {[%emt 0:00:11]} Ra5 {[%emt 0:00:20]} 55. Rc3 {[%emt 0:00:17]} Rf5 {[%emt 0:00:34]} 56. Rh3 {[%emt 0:00:58]} Rh5 {[%emt 0:00:20]} 57. Rh1 {[%emt 0:00:12]} Kf6 {[%emt 0:02:18]} 58. Kg3 {[%emt 0:00:18]} Ra5 {[%emt 0:00:37]} 59. Kg4 {[%emt 0:00:10]} Rh5 {[%emt 0:00:07]} 60. Ra1 {[%emt 0:00:16] Ke5} 1/2-1/2

[Event "Oslo Chess Festival 2017"]
[Site "Oslo"]
[Date "2017.09.30"]
[Round "3"]
[White "Li, Xueyi"]
[Black "Stark, Lars"]
[Result "0-1"]
[ECO "E00"]
[WhiteElo "2157"]
[BlackElo "2397"]
[Annotator "NA"]
[PlyCount "103"]
[EventDate "2017.??.??"]
[EventType "swiss"]
[EventCountry "NOR"]
[SourceTitle "playchess.com"]
[Source "ChessBase"]
[SourceQuality "1"]
[TimeControl "5400+30"]

1. d4 {[%emt 0:00:03]} Nf6 {[%emt 0:00:15]} 2. c4 {[%emt 0:00:06]} e6 {[%emt 0:00:28]} 3. g3 {[%emt 0:00:06]} Bb4+ {[%emt 0:04:14]} 4. Bd2 {[%emt 0:00:57]} Qe7 {[%emt 0:00:08]} 5. Bg2 {[%emt 0:00:09]} Nc6 {[%emt 0:00:54]} 6. e3 {[%emt 0:00:17]} O-O {[%emt 0:02:01]} 7. Ne2 {[%emt 0:03:26]} e5 {[%emt 0:00:55]} 8. d5 {[%emt 0:00:58]} Nb8 {[%emt 0:01:34]} 9. O-O {[%emt 0:01:24]} a5 {[%emt 0:05:45]} 10. Nbc3 {[%emt 0:03:20]} Na6 {[%emt 0:00:47]} 11. a3 {[%emt 0:03:37]} Bxc3 {[%emt 0:00:10]} 12. Nxc3 {[%emt 0:01:10]} Nc5 {[%emt 0:01:08]} 13. e4 {[%emt 0:08:38]} d6 {[%emt 0:06:15]} 14. Be3 {[%emt 0:03:55]} Ng4 {[%emt 0:04:41]} 15. Bxc5 {[%emt 0:11:22]} dxc5 {[%emt 0:00:06]} 16. h3 {[%emt 0:00:06]} Nf6 {[%emt 0:00:30]} 17. f4 {[%emt 0:00:49]} Ne8 {[%emt 0:00:18]} 18. Qh5 {[%emt 0:02:11]} f6 {[%emt 0:05:37]} 19. f5 {[%emt 0:18:09]} a4 {[%emt 0:00:50]} 20. Qe2 {[%emt 0:03:31]} Bd7 {[%emt 0:01:16]} 21. Qe3 {[%emt 0:02:05]} b6 {[%emt 0:03:48]} 22. Rf2 {[%emt 0:02:09]} Nd6 {[%emt 0:01:32]} 23. Bf1 {[%emt 0:02:40]} g5 {[%emt 0:05:20]} 24. Bd3 {[%emt 0:11:23]} Kf7 {[%emt 0:02:55]} 25. Qe2 {[%emt 0:01:13]} Ke8 {[%emt 0:00:15]} 26. Qh5+ {[%emt 0:01:38]} Qf7 {[%emt 0:00:11]} 27. Qe2 {[%emt 0:00:21]} Ke7 {[%emt 0:00:17]} 28. Re1 {[%emt 0:01:09]} Rg8 {[%emt 0:00:34]} 29. Qd1 {[%emt 0:00:59]} Kd8 {[%emt 0:05:37]} 30. Be2 {[%emt 0:03:02]} Kc8 {[%emt 0:00:18]} 31. Bd3 {[%emt 0:00:29]} Kb7 {[%emt 0:02:40]} 32. Rh2 {[%emt 0:00:43]} Kc8 {[%emt 0:03:28]} 33. Rf2 {[%emt 0:00:06]} Kd8 {[%emt 0:00:17]} 34. Be2 {[%emt 0:00:38]} Ke7 {[%emt 0:00:04]} 35. Bd3 {[%emt 0:00:38]} Rg7 {[%emt 0:02:38]} 36. Rh2 {[%emt 0:01:31]} Qe8 {[%emt 0:02:15]} 37. Qe2 {[%emt 0:00:22]} Qb8 {[%emt 0:02:02]} 38. Qd1 {[%emt 0:00:29]} Qa7 {[%emt 0:00:59]} 39. Kh1 {[%emt 0:00:43]} Rag8 {[%emt 0:00:44]} 40. Bc2 {[%emt 0:03:13]} Qa6 {[%emt 0:03:35]} 41. Bxa4 {[%emt 0:01:22]} Bxa4 {[%emt 0:01:34]} 42. Qxa4 {[%emt 0:00:10]} Qxa4 {[%emt 0:00:31]} 43. Nxa4 {[%emt 0:00:14]} Ra8 {[%emt 0:05:39]} 44. b3 {[%emt 0:06:40]} Rgg8 {[%emt 0:00:59]} 45. Ra2 {[%emt 0:00:23]} Rxa4 {[%emt 0:00:39]} 46. bxa4 {[%emt 0:00:09]} Ra8 {[%emt 0:00:12]} 47. g4 {[%emt 0:02:49]} Rxa4 {[%emt 0:00:04]} 48. h4 {[%emt 0:00:04]} gxh4 {[%emt 0:05:25]} 49. Rh2 {[%emt 0:02:09]} Nf7 {[%emt 0:06:10]} 50. Rxh4 {[%emt 0:00:47]} h6 {[%emt 0:00:28]} 51. Rd1 {[%emt 0:00:38]} Kd6 {[%emt 0:01:58]} 52. Rc1 {[%emt 0:00:47]} 0-1

[Event "Oslo Chess Festival 2017"]
[Site "Oslo"]
[Date "2017.09.30"]
[Round "3"]
[White "Gonzalez, Francisco Silva"]
[Black "Maksimovic, Branimir"]
[Result "0-1"]
[ECO "B07"]
[WhiteElo "2046"]
[BlackElo "2343"]
[Annotator "NA"]
[PlyCount "134"]
[EventDate "2017.??.??"]
[EventType "swiss"]
[EventCountry "NOR"]
[SourceTitle "playchess.com"]
[Source "ChessBase"]
[SourceQuality "1"]
[TimeControl "5400+30"]

1. d4 {[%emt 0:00:58]} d6 {[%emt 0:00:14]} 2. e4 {[%emt 0:01:04]} Nf6 {[%emt 0:00:04]} 3. f3 {[%emt 0:00:11]} Nc6 {[%emt 0:02:44]} 4. Ne2 {[%emt 0:02:26]} e5 {[%emt 0:00:38]} 5. d5 {[%emt 0:01:43]} Ne7 {[%emt 0:01:49]} 6. c4 {[%emt 0:00:27]} Ng6 {[%emt 0:01:57]} 7. Nbc3 {[%emt 0:01:06]} Be7 {[%emt 0:00:04]} 8. Be3 {[%emt 0:01:46]} Nh5 {[%emt 0:01:51]} 9. Qd2 {[%emt 0:00:13]} h6 {[%emt 0:00:18]} 10. g3 {[%emt 0:01:06]} Bg5 {[%emt 0:00:22]} 11. h4 {[%emt 0:03:25]} Bxe3 {[%emt 0:00:22]} 12. Qxe3 {[%emt 0:00:14]} O-O {[%emt 0:03:30]} 13. g4 {[%emt 0:02:16]} Nhf4 {[%emt 0:00:37]} 14. h5 {[%emt 0:00:06]} Nxe2 {[%emt 0:01:26]} 15. Nxe2 {[%emt 0:00:52]} Nh8 {[%emt 0:00:11]} 16. c5 {[%emt 0:01:31]} f6 {[%emt 0:01:15]} 17. O-O-O {[%emt 0:00:24]} Nf7 {[%emt 0:00:10]} 18. Nc3 {[%emt 0:00:30]} Ng5 {[%emt 0:16:16]} 19. Be2 {[%emt 0:01:23]} Bd7 {[%emt 0:00:33]} 20. Kb1 {[%emt 0:00:28]} Qe7 {[%emt 0:00:55]} 21. cxd6 {[%emt 0:07:22]} cxd6 {[%emt 0:00:05]} 22. Rc1 {[%emt 0:00:09]} Rfc8 {[%emt 0:00:50]} 23. Rc2 {[%emt 0:02:17]} Qd8 {[%emt 0:05:23]} 24. Rhc1 {[%emt 0:01:00]} Qa5 {[%emt 0:00:24]} 25. Nd1 {[%emt 0:18:10]} Rxc2 {[%emt 0:00:58]} 26. Rxc2 {[%emt 0:00:39]} Rc8 {[%emt 0:03:29]} 27. Rxc8+ {[%emt 0:04:11]} Bxc8 {[%emt 0:00:02]} 28. Qc3 {[%emt 0:00:22]} Qxc3 {[%emt 0:00:28]} 29. Nxc3 {[%emt 0:07:49]} Bd7 {[%emt 0:00:11]} 30. b4 {[%emt 0:02:39]} Kf8 {[%emt 0:00:44]} 31. a4 {[%emt 0:00:40]} Ke7 {[%emt 0:00:34]} 32. Kc2 {[%emt 0:00:27]} Be8 {[%emt 0:00:48]} 33. Kd2 {[%emt 0:00:50]} g6 {[%emt 0:00:20]} 34. hxg6 {[%emt 0:00:21]} Bxg6 {[%emt 0:00:02]} 35. a5 {[%emt 0:00:19]} Be8 {[%emt 0:04:06]} 36. Ke3 {[%emt 0:00:42]} h5 {[%emt 0:05:08]} 37. gxh5 {[%emt 0:00:21]} Bxh5 {[%emt 0:00:05]} 38. a6 {[%emt 0:00:08]} bxa6 {[%emt 0:00:14]} 39. Bxa6 {[%emt 0:03:54]} Bxf3 {[%emt 0:00:12]} 40. Bd3 {[%emt 0:00:12]} Kd7 {[%emt 0:08:23]} 41. Bf1 {[%emt 0:00:45]} Ke7 {[%emt 0:11:12]} 42. Bd3 {[%emt 0:00:29]} Bg2 {[%emt 0:01:09]} 43. Kf2 {[%emt 0:01:21]} Bh3 {[%emt 0:00:24]} 44. Nb5 {[%emt 0:00:27]} a6 {[%emt 0:01:12]} 45. Nc7 {[%emt 0:01:34]} Kd7 {[%emt 0:05:30]} 46. Nxa6 {[%emt 0:00:58]} Kc8 {[%emt 0:00:06]} 47. b5 {[%emt 0:02:40]} Kb7 {[%emt 0:00:13]} 48. Nb4 {[%emt 0:00:50]} Kb6 {[%emt 0:00:24]} 49. Nc6 {[%emt 0:01:11]} Bg4 {[%emt 0:02:43]} 50. Nb4 {[%emt 0:10:27]} Bd7 {[%emt 0:02:02]} 51. Nc6 {[%emt 0:00:13]} Nh3+ {[%emt 0:04:03]} 52. Ke3 {[%emt 0:02:59]} Nf4 {[%emt 0:00:04]} 53. Bf1 {[%emt 0:01:31]} f5 {[%emt 0:01:33]} 54. Ne7 {[%emt 0:05:07]} fxe4 {[%emt 0:00:07]} 55. Kxe4 {[%emt 0:00:33]} Kc5 {[%emt 0:00:03]} 56. Nc6 {[%emt 0:00:30]} Nxd5 {[%emt 0:00:30]} 57. Nxe5 {[%emt 0:01:44]} Nf6+ {[%emt 0:03:20]} 58. Kf4 {[%emt 0:00:07]} Nh5+ {[%emt 0:00:24]} 59. Kg5 {[%emt 0:04:25]} dxe5 {[%emt 0:00:50]} 60. Kxh5 {[%emt 0:00:07]} Bxb5 {[%emt 0:00:09]} 61. Bg2 {[%emt 0:02:54]} Bc6 {[%emt 0:00:49]} 62. Bf1 {[%emt 0:00:06]} Kd4 {[%emt 0:00:18]} 63. Kg4 {[%emt 0:00:14]} Ke3 {[%emt 0:00:39]} 64. Kg3 {[%emt 0:00:22]} Kd2 {[%emt 0:00:35]} 65. Bh3 {[%emt 0:01:00]} e4 {[%emt 0:00:12]} 66. Bg2 {[%emt 0:01:54]} e3 {[%emt 0:00:21]} 67. Bf1 {[%emt 0:00:01]} Be4 {[%emt 0:02:28]} 0-1

[Event "Oslo Chess Festival 2017"]
[Site "Oslo"]
[Date "2017.09.30"]
[Round "3"]
[White "Johansen, Kai -Roger"]
[Black "Lund, Gunnar"]
[Result "1-0"]
[ECO "D00"]
[WhiteElo "1950"]
[BlackElo "2244"]
[Annotator "NA"]
[PlyCount "111"]
[EventDate "2017.??.??"]
[EventType "swiss"]
[EventCountry "NOR"]
[SourceTitle "playchess.com"]
[Source "ChessBase"]
[SourceQuality "1"]
[TimeControl "5400+30"]

1. d4 {[%emt 0:00:04]} Nf6 {[%emt 0:00:14]} 2. Bf4 {[%emt 0:00:13]} d5 {[%emt 0:00:13]} 3. e3 {[%emt 0:00:32]} c5 {[%emt 0:00:20]} 4. c3 {[%emt 0:00:36]} Nc6 {[%emt 0:00:13]} 5. Nd2 {[%emt 0:01:27]} cxd4 {[%emt 0:00:12]} 6. exd4 {[%emt 0:00:48]} Bf5 {[%emt 0:00:27]} 7. Nb3 {[%emt 0:00:42]} e6 {[%emt 0:06:21]} 8. Bd3 {[%emt 0:00:35]} Bxd3 {[%emt 0:04:07]} 9. Qxd3 {[%emt 0:00:19]} Bd6 {[%emt 0:00:22]} 10. Bg3 {[%emt 0:01:11]} O-O {[%emt 0:09:02]} 11. Nf3 {[%emt 0:00:20]} Ne4 {[%emt 0:09:05]} 12. O-O {[%emt 0:02:59]} Rb8 {[%emt 0:06:24]} 13. Rfe1 {[%emt 0:02:04]} b5 {[%emt 0:05:06]} 14. a3 {[%emt 0:00:35]} a5 {[%emt 0:04:05]} 15. Rac1 {[%emt 0:07:10]} Nxg3 {[%emt 0:07:36]} 16. hxg3 {[%emt 0:02:21]} Qe7 {[%emt 0:06:52]} 17. Ne5 {[%emt 0:01:27]} Rfc8 {[%emt 0:01:05]} 18. Nxc6 {[%emt 0:02:30]} Rxc6 {[%emt 0:00:02]} 19. Nxa5 {[%emt 0:00:37]} Rcc8 {[%emt 0:00:32]} 20. Nb3 {[%emt 0:01:56]} Qc7 {[%emt 0:00:07]} 21. Nd2 {[%emt 0:00:35]} g6 {[%emt 0:01:44]} 22. Rcd1 {[%emt 0:04:22]} Kg7 {[%emt 0:00:23]} 23. Nf3 {[%emt 0:00:35]} Qc4 {[%emt 0:00:32]} 24. Qe3 {[%emt 0:03:34]} Qb3 {[%emt 0:02:54]} 25. Rd2 {[%emt 0:01:51]} Qc4 {[%emt 0:00:19]} 26. Ne5 {[%emt 0:00:22]} Qc7 {[%emt 0:00:19]} 27. Ng4 {[%emt 0:01:26]} Qe7 {[%emt 0:04:00]} 28. Qh6+ {[%emt 0:01:12]} Kh8 {[%emt 0:00:10]} 29. Rde2 {[%emt 0:01:17]} Qf8 {[%emt 0:00:11]} 30. Qxf8+ {[%emt 0:07:30]} Bxf8 {[%emt 0:00:56]} 31. Ne5 {[%emt 0:00:40]} Rb7 {[%emt 0:00:09]} 32. g4 {[%emt 0:01:23]} Bd6 {[%emt 0:00:49]} 33. g5 {[%emt 0:01:24]} Kg7 {[%emt 0:00:09]} 34. g3 {[%emt 0:01:24]} h6 {[%emt 0:01:36]} 35. gxh6+ {[%emt 0:01:03]} Kxh6 {[%emt 0:00:03]} 36. Kg2 {[%emt 0:00:23]} Bxe5 {[%emt 0:01:06]} 37. Rh1+ {[%emt 0:03:02]} Kg7 {[%emt 0:00:12]} 38. Rxe5 {[%emt 0:01:08]} Rbb8 {[%emt 0:00:22]} 39. Kf3 {[%emt 0:01:25]} Rh8 {[%emt 0:00:20]} 40. Ree1 {[%emt 0:00:08]} Kf6 {[%emt 0:00:34]} 41. Kg2 {[%emt 0:03:27]} Kg7 {[%emt 0:00:06]} 42. g4 {[%emt 0:02:16]} g5 {[%emt 0:03:40]} 43. Kf3 {[%emt 0:02:33]} Kf6 {[%emt 0:03:05]} 44. Kg2 {[%emt 0:08:28]} Kg7 {[%emt 0:01:02]} 45. f3 {[%emt 0:00:23]} Kf6 {[%emt 0:00:39]} 46. Rxh8 {[%emt 0:06:21]} Rxh8 {[%emt 0:00:13]} 47. Rh1 {[%emt 0:00:08]} Re8 {[%emt 0:01:40]} 48. Kf2 {[%emt 0:00:30]} Kg6 {[%emt 0:01:24]} 49. Rh2 {[%emt 0:02:13]} f5 {[%emt 0:00:16]} 50. Rh1 {[%emt 0:02:33]} fxg4 {[%emt 0:00:26]} 51. fxg4 {[%emt 0:00:10]} Rf8+ {[%emt 0:00:10]} 52. Kg3 {[%emt 0:01:04]} Rf4 {[%emt 0:00:07]} 53. Rh8 {[%emt 0:01:52]} Re4 {[%emt 0:00:21]} 54. Rb8 {[%emt 0:00:13]} Re3+ {[%emt 0:00:06]} 55. Kf2 {[%emt 0:00:26]} Re4 {[%emt 0:00:51]} 56. Kf3 {[%emt 0:00:09]} 1-0